{"text_format":"3","workbook":"xlsx","n_sheets":8,"sheets":["Indicații","Contacte apropiate","Cunoștințe ocazionale","Potențiali clienți","Plan de stabilire relații T1","Plan de stabilire relații T2","Plan de stabilire relații T3","Plan de stabilire relații T4"],"not_rendered":{"defined_names":7},"read":"whole","date_system":"1900"}

{"sheet":"Indicații","index":0,"n_rows":17,"n_cols":5,"rows_kept":17,"merged":[[0,0,0,2],[1,1,1,6],[2,1,2,6],[3,1,3,6],[4,1,4,6],[5,1,5,6],[6,1,6,6],[7,1,7,6],[8,1,8,6],[9,1,9,6],[10,1,10,6],[11,1,11,6]]}
["Monitor de contactări",null,null,"Indicații"]
[null,"1. Decideți în ce categorie se încadrează persoana de contact:"]
[null,"• contacte apropiate - persoanele cu care doriți să păstrați legătura în mod regulat"]
[null,"• cunoștințe ocazionale - persoane cu care doriți să interacționați de câteva ori pe an"]
[null,"• potențiali clienți - persoane/firme pe care doriți să le păstrați în fișier pentru a le contacta la momentul potrivit"]
[null,"2. Deschideți fila corespunzătoare din foaia de lucru."]
[null,"3. Introduceți informațiile lor (pentru a crea o linie nouă într-o celulă, apăsați Alt+Enter în Windows sau Option+Return pe un Mac)."]
[null,"Vedeți aici noile instrucțiuni de linie pentru aplicațiile Excel mobile."]
[null,"4. În coloana Data urmăririi, ștergeți data/formula eșantion, introduceți când doriți să contactați persoana \nși apăsați Enter."]
[null,"5. Coloana Data urmăririi se va afișa cu roșu atunci când data este foarte aproape, cu galben atunci când se apropie și \ncu verde atunci când mai e suficient timp."]
[null,"6. Pe măsură ce data de urmărire se apropie, culoarea se va modifica în mod corespunzător."]
[null,"7. După ce contactați persoana de contact, tastați DA în coloana Gata?. Acest lucru va estompa data. "]
[null,"8. Dacă doriți să luați legătura din nou cu acea persoană, înlocuiți DA cu NU și tastați o nouă Data urmăririi."]
[null,null,"Roșu","Galben","Verde"]
[null,"Contacte apropiate","1-3 zile distanță","4-7 zile distanță","Peste 8-14 zile"]
[null,"Cunoștințe ocazionale","1-7 zile distanță","8-45 de zile distanță","Peste 46-90 de zile"]
[null,"Potențiali clienți","1-14 zile distanță","15-60 de zile distanță","Peste 60-120 de zile"]

{"sheet":"Contacte apropiate","index":1,"n_rows":7,"n_cols":8,"rows_kept":7,"merged":[[0,0,0,2]]}
["Monitor de contactări",null,null,"Contacte apropiate"]
[]
["Nume","Firmă","Informații de contact","Unde ne-am întâlnit","Note","Data urmăririi","Gata","Note din conversație"]
["Garth Fort","Adventure Works","Manager de proiect\ngarth@adventure-works.com\n(234) 555-0134\nadventure-works.com\nlinkedin.com/in/garth-fort","Expoziție comercială 2010","Întrebați despre fiica Sandy și cum merge renovarea. Nu îi plac grupurile mari și mâncarea picantă.",{"$f":"TODAY()+8","v":"2021-07-24"},"NU"]
["Nume","Numele firmei","Denumirea funcției\nAdresă de e-mail\nNumăr de telefon\nSite web\nLinkuri de profiluri sociale\n","Locație","Introduceți toate notele pe care doriți să le rețineți despre această persoană; unde v-ați întâlnit, despre ce ați vorbit, ce subiecte doriți să aduceți în discuție data viitoare când vorbiți etc.",{"$f":"TODAY()-3","v":"2021-07-13"},"DA"]
["Nume","Numele firmei","Denumirea funcției\nAdresă de e-mail\nNumăr de telefon\nSite web\nLinkuri de profiluri sociale\n","Locație","Introduceți toate notele pe care doriți să le rețineți despre această persoană; unde v-ați întâlnit, despre ce ați vorbit, ce subiecte doriți să aduceți în discuție data viitoare când vorbiți etc.",{"$f":"TODAY()+-3","v":"2021-07-13"},"NU"]
["Nume","Numele firmei","Denumirea funcției\nAdresă de e-mail\nNumăr de telefon\nSite web\nLinkuri de profiluri sociale\n","Locație","Introduceți toate notele pe care doriți să le rețineți despre această persoană; unde v-ați întâlnit, despre ce ați vorbit, ce subiecte doriți să aduceți în discuție data viitoare când vorbiți etc.",{"$f":"TODAY()+6","v":"2021-07-22"},"NU"]

{"sheet":"Cunoștințe ocazionale","index":2,"n_rows":7,"n_cols":8,"rows_kept":7,"merged":[[0,0,0,2]]}
["Monitor de contactări",null,null,"Cunoștințe ocazionale"]
[]
["Nume","Firmă","Informații de contact","Unde ne-am întâlnit","Note","Data urmăririi","Gata","Note din conversație"]
["Garth Fort","Adventure Works","Manager de resurse\ngarth@adventure-works.com\n(434) 555-0123\nwww.adventure-works.com\nlinkedin.com/in/garth-fort","Vacanță în Vermont 2016","Util atât pentru angajarea persoanei de contact, cât și pentru întrebări de marketing",{"$f":"TODAY()+90","v":"2021-10-14"},"NU"]
["Nume","Numele firmei","Denumirea funcției\nAdresă de e-mail\nNumăr de telefon\nSite web\nLinkuri de profiluri sociale\n","Locație","Introduceți toate notele pe care doriți să le rețineți despre această persoană; unde v-ați întâlnit, despre ce ați vorbit, ce subiecte doriți să aduceți în discuție data viitoare când vorbiți etc.",{"$f":"TODAY()-3","v":"2021-07-13"},"DA"]
["Nume","Numele firmei","Denumirea funcției\nAdresă de e-mail\nNumăr de telefon\nSite web\nLinkuri de profiluri sociale\n","Locație","Introduceți toate notele pe care doriți să le rețineți despre această persoană; unde v-ați întâlnit, despre ce ați vorbit, ce subiecte doriți să aduceți în discuție data viitoare când vorbiți etc.",{"$f":"TODAY()+-3","v":"2021-07-13"},"NU"]
["Nume","Numele firmei","Denumirea funcției\nAdresă de e-mail\nNumăr de telefon\nSite web\nLinkuri de profiluri sociale\n","Locație","Introduceți toate notele pe care doriți să le rețineți despre această persoană; unde v-ați întâlnit, despre ce ați vorbit, ce subiecte doriți să aduceți în discuție data viitoare când vorbiți etc.",{"$f":"TODAY()+40","v":"2021-08-25"},"NU"]

{"sheet":"Potențiali clienți","index":3,"n_rows":7,"n_cols":8,"rows_kept":7,"merged":[[0,0,0,2]]}
["Monitor de contactări",null,null,"Potențiali clienți"]
[]
["Nume","Firmă","Informații de contact","Unde ne-am întâlnit","Note","Data urmăririi","Gata","Note din conversație"]
["Garth Fort","Liber profesionist","Designer\ncineva@example.com\n425-555-0123\nexample.com\nlinkedin.com/in/garth-fort","Absolvirea fiului 2016","Absolvent recent - foarte calificat. Poate fi util pentru clienții viitori.",{"$f":"TODAY()+89","v":"2021-10-13"},"NU"]
["Nume","Numele firmei","Denumirea funcției\nAdresă de e-mail\nNumăr de telefon\nSite web\nLinkuri de profiluri sociale\n","Locație","Introduceți toate notele pe care doriți să le rețineți despre această persoană; unde v-ați întâlnit, despre ce ați vorbit, ce subiecte doriți să aduceți în discuție data viitoare când vorbiți etc.",{"$f":"TODAY()-3","v":"2021-07-13"},"DA"]
["Nume","Numele firmei","Denumirea funcției\nAdresă de e-mail\nNumăr de telefon\nSite web\nLinkuri de profiluri sociale\n","Locație","Introduceți toate notele pe care doriți să le rețineți despre această persoană; unde v-ați întâlnit, despre ce ați vorbit, ce subiecte doriți să aduceți în discuție data viitoare când vorbiți etc.",{"$f":"TODAY()+-3","v":"2021-07-13"},"NU"]
["Nume","Numele firmei","Denumirea funcției\nAdresă de e-mail\nNumăr de telefon\nSite web\nLinkuri de profiluri sociale\n","Locație","Introduceți toate notele pe care doriți să le rețineți despre această persoană; unde v-ați întâlnit, despre ce ați vorbit, ce subiecte doriți să aduceți în discuție data viitoare când vorbiți etc.",{"$f":"TODAY()+30","v":"2021-08-15"},"NU"]

{"sheet":"Plan de stabilire relații T1","index":4,"n_rows":20,"n_cols":6,"rows_kept":20,"merged":[[0,0,0,3],[2,0,2,3],[4,0,4,3],[14,5,17,5],[18,0,18,3]]}
["Plan de extindere a rețelei"]
["Indicații"]
["Scrieți cum intenționați să vă extindeți rețeaua în acest trimestru (de exemplu, să efectuați mai multe apeluri telefonice, să călătoriți mai mult etc.). Apoi, de fiecare dată când obțineți o nouă persoană de contact, modificați numărul de Persoane de contact reale create pentru a ține evidența și a vedea cât de aproape sunteți să vă atingeți obiectivul."]
[]
["Cum intenționez să-mi extind rețeaua în acest trimestru"]
["1. Să fac mai multe apeluri telefonice"]
["2. Să călătoresc mai mult"]
[]
[]
[]
[]
[]
[]
["Obiectiv trimestrial pentru contacte","Termen limită","Persoane de contact reale create trimestrial","Rezultate"]
[20,{"$f":"TODAY()","v":"2021-07-16"},12,{"$f":"IF(tblGoals[[#This Row],[Obiectiv trimestrial pentru contacte]]>0,tblGoals[[#This Row],[Persoane de contact reale create trimestrial]]/tblGoals[[#This Row],[Obiectiv trimestrial pentru contacte]],\"\")","v":{"v":0.6,"d":"60%"}},null,"0% - 25%\n26% - 50%\n51% - 75%\n76% - 100%\n\nModificarea culorii în funcție de procentul atins"]
[{"$nulls":3},{"$f":"IF(tblGoals[[#This Row],[Obiectiv trimestrial pentru contacte]]>0,tblGoals[[#This Row],[Persoane de contact reale create trimestrial]]/tblGoals[[#This Row],[Obiectiv trimestrial pentru contacte]],\"\")","v":""}]
[{"$nulls":3},{"$f":"IF(tblGoals[[#This Row],[Obiectiv trimestrial pentru contacte]]>0,tblGoals[[#This Row],[Persoane de contact reale create trimestrial]]/tblGoals[[#This Row],[Obiectiv trimestrial pentru contacte]],\"\")","v":""}]
[]
["Reflecție asupra rezultatului / Note pentru îmbunătățire"]
["Ne-am apropiat. De încercat în schimb apelatul în jurul prânzului."]

{"sheet":"Plan de stabilire relații T2","index":5,"n_rows":20,"n_cols":6,"rows_kept":20,"merged":[[0,0,0,3],[2,0,2,3],[4,0,4,3],[14,5,17,5],[18,0,18,3]]}
["Plan de extindere a rețelei"]
["Indicații"]
["Scrieți cum intenționați să vă extindeți rețeaua în acest trimestru (de exemplu, să efectuați mai multe apeluri telefonice, să călătoriți mai mult etc.). Apoi, de fiecare dată când obțineți o nouă persoană de contact, modificați numărul de Persoane de contact reale create pentru a ține evidența și a vedea cât de aproape sunteți să vă atingeți obiectivul."]
[]
["Cum intenționez să-mi extind rețeaua în acest trimestru"]
["1. Să fac mai multe apeluri telefonice"]
["2. Să călătoresc mai mult"]
[]
[]
[]
[]
[]
[]
["Obiectiv trimestrial pentru contacte","Termen limită","Persoane de contact reale create trimestrial","Rezultate"]
[20,{"$f":"TODAY()","v":"2021-07-16"},12,{"$f":"IF(tblGoals3[[#This Row],[Obiectiv trimestrial pentru contacte]]>0,tblGoals3[[#This Row],[Persoane de contact reale create trimestrial]]/tblGoals3[[#This Row],[Obiectiv trimestrial pentru contacte]],\"\")","v":{"v":0.6,"d":"60%"}},null,"0% - 25%\n26% - 50%\n51% - 75%\n76% - 100%\n\nModificarea culorii în funcție de procentul atins"]
[{"$nulls":3},{"$f":"IF(tblGoals3[[#This Row],[Obiectiv trimestrial pentru contacte]]>0,tblGoals3[[#This Row],[Persoane de contact reale create trimestrial]]/tblGoals3[[#This Row],[Obiectiv trimestrial pentru contacte]],\"\")","v":""}]
[{"$nulls":3},{"$f":"IF(tblGoals3[[#This Row],[Obiectiv trimestrial pentru contacte]]>0,tblGoals3[[#This Row],[Persoane de contact reale create trimestrial]]/tblGoals3[[#This Row],[Obiectiv trimestrial pentru contacte]],\"\")","v":""}]
[]
["Reflecție asupra rezultatului / Note pentru îmbunătățire"]
["Ne-am apropiat. De încercat în schimb apelatul în jurul prânzului."]

{"sheet":"Plan de stabilire relații T3","index":6,"n_rows":20,"n_cols":6,"rows_kept":20,"merged":[[0,0,0,3],[2,0,2,3],[4,0,4,3],[14,5,17,5],[18,0,18,3]]}
["Plan de extindere a rețelei"]
["Indicații"]
["Scrieți cum intenționați să vă extindeți rețeaua în acest trimestru (de exemplu, să efectuați mai multe apeluri telefonice, să călătoriți mai mult etc.). Apoi, de fiecare dată când obțineți o nouă persoană de contact, modificați numărul de Persoane de contact reale create pentru a ține evidența și a vedea cât de aproape sunteți să vă atingeți obiectivul."]
[]
["Cum intenționez să-mi extind rețeaua în acest trimestru"]
["1. Să fac mai multe apeluri telefonice"]
["2. Să călătoresc mai mult"]
[]
[]
[]
[]
[]
[]
["Obiectiv trimestrial pentru contacte","Termen limită","Persoane de contact reale create trimestrial","Rezultate"]
[20,{"$f":"TODAY()","v":"2021-07-16"},12,{"$f":"IF(tblGoals34[[#This Row],[Obiectiv trimestrial pentru contacte]]>0,tblGoals34[[#This Row],[Persoane de contact reale create trimestrial]]/tblGoals34[[#This Row],[Obiectiv trimestrial pentru contacte]],\"\")","v":{"v":0.6,"d":"60%"}},null,"0% - 25%\n26% - 50%\n51% - 75%\n76% - 100%\n\nModificarea culorii în funcție de procentul atins"]
[{"$nulls":3},{"$f":"IF(tblGoals34[[#This Row],[Obiectiv trimestrial pentru contacte]]>0,tblGoals34[[#This Row],[Persoane de contact reale create trimestrial]]/tblGoals34[[#This Row],[Obiectiv trimestrial pentru contacte]],\"\")","v":""}]
[{"$nulls":3},{"$f":"IF(tblGoals34[[#This Row],[Obiectiv trimestrial pentru contacte]]>0,tblGoals34[[#This Row],[Persoane de contact reale create trimestrial]]/tblGoals34[[#This Row],[Obiectiv trimestrial pentru contacte]],\"\")","v":""}]
[]
["Reflecție asupra rezultatului / Note pentru îmbunătățire"]
["Ne-am apropiat. De încercat în schimb apelatul în jurul prânzului."]

{"sheet":"Plan de stabilire relații T4","index":7,"n_rows":20,"n_cols":6,"rows_kept":20,"merged":[[0,0,0,3],[2,0,2,3],[4,0,4,3],[14,5,17,5],[18,0,18,3]]}
["Plan de extindere a rețelei"]
["Indicații"]
["Scrieți cum intenționați să vă extindeți rețeaua în acest trimestru (de exemplu, să efectuați mai multe apeluri telefonice, să călătoriți mai mult etc.). Apoi, de fiecare dată când obțineți o nouă persoană de contact, modificați numărul de Persoane de contact reale create pentru a ține evidența și a vedea cât de aproape sunteți să vă atingeți obiectivul."]
[]
["Cum intenționez să-mi extind rețeaua în acest trimestru"]
["1. Să fac mai multe apeluri telefonice"]
["2. Să călătoresc mai mult"]
[]
[]
[]
[]
[]
[]
["Obiectiv trimestrial pentru contacte","Termen limită","Persoane de contact reale create trimestrial","Rezultate"]
[20,{"$f":"TODAY()","v":"2021-07-16"},12,{"$f":"IF(tblGoals348[[#This Row],[Obiectiv trimestrial pentru contacte]]>0,tblGoals348[[#This Row],[Persoane de contact reale create trimestrial]]/tblGoals348[[#This Row],[Obiectiv trimestrial pentru contacte]],\"\")","v":{"v":0.6,"d":"60%"}},null,"0% - 25%\n26% - 50%\n51% - 75%\n76% - 100%\n\nModificarea culorii în funcție de procentul atins"]
[{"$nulls":3},{"$f":"IF(tblGoals348[[#This Row],[Obiectiv trimestrial pentru contacte]]>0,tblGoals348[[#This Row],[Persoane de contact reale create trimestrial]]/tblGoals348[[#This Row],[Obiectiv trimestrial pentru contacte]],\"\")","v":""}]
[{"$nulls":3},{"$f":"IF(tblGoals348[[#This Row],[Obiectiv trimestrial pentru contacte]]>0,tblGoals348[[#This Row],[Persoane de contact reale create trimestrial]]/tblGoals348[[#This Row],[Obiectiv trimestrial pentru contacte]],\"\")","v":""}]
[]
["Reflecție asupra rezultatului / Note pentru îmbunătățire"]
["Ne-am apropiat. De încercat în schimb apelatul în jurul prânzului."]